{"text_format":"3","workbook":"xlsx","n_sheets":14,"sheets":["namigi","povzetek","jan","feb","mar","apr","maj","jun","jul","avg","sep","okt","nov","dec"],"not_rendered":{"charts":1,"defined_names":27},"read":"whole","date_system":"1900"}

{"sheet":"namigi","index":0,"n_rows":18,"n_cols":1,"rows_kept":18}
["NAMIGI ZA PREDLOGO"]
["Ali obstaja preprost način za preskakovanje med listom s povzetkom »Trendi stroškov« in podrobnostmi mesečnih stroškov?"]
["Če se želite hitro premakniti do stroškov za določen mesec, kliknite povezano povezavo za krmarjenje nad grafikonom, kot je povezava za krmarjenje Jan v celici B2. Če se želite nato vrniti na delovni list »Trendi stroškov«, kliknite povezavo za krmarjenje Povzetek v celici D1. "]
["Če se želite vrniti na ta delovni list z namigi, na delovnem listu s povzetkom izberite N2. Na delovnih listih vseh mesecev izberite E1."]
["Kako v povzetek stroškov ali nove mesečne stroške dodam novo vrsto stroška?"]
["Povzetek stroškov pod grafikonom in podrobnosti stroškov za vsak posamezni mesec so Excelove tabele. Če želite dodati nove vrstice v katerokoli Excelovo tabelo, naredite nekaj od tega:"]
[{"$f":"ROW(A1)&\". Če tabela ne vsebuje vrstice »Skupna vsota«, začnite vnašati podatke pod tabelo, ki se samodejno razširi, ko pritisnete tipko Enter ali Tab.\"","v":"1. Če tabela ne vsebuje vrstice »Skupna vsota«, začnite vnašati podatke pod tabelo, ki se samodejno razširi, ko pritisnete tipko Enter ali Tab."}]
[{"$f":"ROW(A2)&\". Kazalec celice premaknite v zadnjo celico nad vrstico »Skupna vsota«, kot je skupna vsota zadnjih stroškov, in nato pritisnite tipko Tab.\"","v":"2. Kazalec celice premaknite v zadnjo celico nad vrstico »Skupna vsota«, kot je skupna vsota zadnjih stroškov, in nato pritisnite tipko Tab."}]
[{"$f":"ROW(A3)&\". Z desno tipko miške kliknite v tabeli in nato v pojavnem meniju pokažite na »Vstavi« ter kliknite »Vrstice tabele zgoraj« ali »Vrstice tabele spodaj«.\"","v":"3. Z desno tipko miške kliknite v tabeli in nato v pojavnem meniju pokažite na »Vstavi« ter kliknite »Vrstice tabele zgoraj« ali »Vrstice tabele spodaj«."}]
[{"$f":"ROW(A4)&\". V spodnjem desnem kotu tabele premaknite kazalec miške na ročico za spreminjanje velikosti tabele in jo povlecite navzdol, da povečate število vrstic v tabeli, ki so na voljo.\"","v":"4. V spodnjem desnem kotu tabele premaknite kazalec miške na ročico za spreminjanje velikosti tabele in jo povlecite navzdol, da povečate število vrstic v tabeli, ki so na voljo."}]
["Vnesite strošek na delovni list s povzetkom v tabeli Povzetek stroškov v stolpcu Stroški."]
["Dodajte znesek stroška za vsako vrsto stroška na delovni list za mesec, za katerega velja strošek."]
["Na primer: »Strošek 1« se pojavlja v mesecih od januarja do junija in decembra. "]
[{"$f":"ROW(A1)&\". Vrstica »Stroški 1« je vnesena na delovni list s povzetkom pod vrstico »Stroški« v tabeli PovzetekStroškov (kot je naslov za vrsto stroškov)\"","v":"1. Vrstica »Stroški 1« je vnesena na delovni list s povzetkom pod vrstico »Stroški« v tabeli PovzetekStroškov (kot je naslov za vrsto stroškov)"}]
[{"$f":"ROW(A2)&\". Vsak mesec vnesite znesek nastalih stroškov na delovni list ustreznega meseca.\"","v":"2. Vsak mesec vnesite znesek nastalih stroškov na delovni list ustreznega meseca."}]
[{"$f":"ROW(A3)&\". Vrsta stroškov iz delovnega lista PovzetekStroškov ustvari seznam kategorijo za stolpec »Kategorija« na delovnem listu posameznega meseca.\"","v":"3. Vrsta stroškov iz delovnega lista PovzetekStroškov ustvari seznam kategorijo za stolpec »Kategorija« na delovnem listu posameznega meseca."}]
[{"$f":"ROW(A4)&\". Na seznamu kategorij v stolpcu »Kategorija« izberite ustrezno vrsto stroškov za vneseni znesek stroškov\"","v":"4. Na seznamu kategorij v stolpcu »Kategorija« izberite ustrezno vrsto stroškov za vneseni znesek stroškov"}]
[{"$f":"ROW(A5)&\". Če želite dodati nove stroške za kateri koli mesec, dodajte novo vrstico v tabelo PovzetekStroškov na delovnem listu s povzetkom in nato vnesite ustrezne podrobnosti stroškov na delovni list meseca, za katerega veljajo stroški.\"","v":"5. Če želite dodati nove stroške za kateri koli mesec, dodajte novo vrstico v tabelo PovzetekStroškov na delovnem listu s povzetkom in nato vnesite ustrezne podrobnosti stroškov na delovni list meseca, za katerega veljajo stroški."}]

{"sheet":"povzetek","index":1,"n_rows":10,"n_cols":15,"rows_kept":10}
["TRENDI STROŠKOV"]
[null,"Jan","Feb","Mar","Apr","Maj","Jun","Jul","Avg","Sep","Okt","Nov","Dec","Namigi"]
[]
["Stroški","Jan","Feb","Mar","Apr","Maj","Jun","Jul","Avg","Sep","Okt","Nov","Dec","Vsota","Trend"]
["Strošek 1",{"$f":"SUMIFS(Str_jan[Znesek],Str_jan[Kategorija],Povzetek_stroškov[Stroški])","v":{"v":33,"d":"33.00"}},{"$f":"SUMIFS(Str_feb[Znesek],Str_feb[Kategorija],Povzetek_stroškov[Stroški])","v":{"v":375,"d":"375.00"}},{"$f":"SUMIFS(Str_mar[Znesek],Str_mar[Kategorija],Povzetek_stroškov[Stroški])","v":{"v":33,"d":"33.00"}},{"$f":"SUMIFS(Str_apr[Znesek],Str_apr[Kategorija],Povzetek_stroškov[Stroški])","v":{"v":45,"d":"45.00"}},{"$f":"SUMIFS(Str_maj[Znesek],Str_maj[Kategorija],Povzetek_stroškov[Stroški])","v":{"v":375,"d":"375.00"}},{"$f":"SUMIFS(Str_jun[Znesek],Str_jun[Kategorija],Povzetek_stroškov[Stroški])","v":{"v":201,"d":"201.00"}},{"$f":"SUMIFS(Str_jul[Znesek],Str_jul[Kategorija],Povzetek_stroškov[Stroški])","v":{"v":0,"d":"0.00"}},{"$f":"SUMIFS(Str_avg[Znesek],Str_avg[Kategorija],Povzetek_stroškov[Stroški])","v":{"v":0,"d":"0.00"}},{"$f":"SUMIFS(Str_sep[Znesek],Str_sep[Kategorija],Povzetek_stroškov[Stroški])","v":{"v":0,"d":"0.00"}},{"$f":"SUMIFS(Str_okt[Znesek],Str_okt[Kategorija],Povzetek_stroškov[Stroški])","v":{"v":0,"d":"0.00"}},{"$f":"SUMIFS(Str_nov[Znesek],Str_nov[Kategorija],Povzetek_stroškov[Stroški])","v":{"v":0,"d":"0.00"}},{"$f":"SUMIFS(Str_dec[Znesek],Str_dec[Kategorija],Povzetek_stroškov[Stroški])","v":{"v":201,"d":"201.00"}},{"$f":"SUM(Povzetek_stroškov[[#This Row],[Jan]:[Dec]])","v":{"v":1263,"d":"1,263.00"}}]
["Strošek 2",{"$f":"SUMIFS(Str_jan[Znesek],Str_jan[Kategorija],Povzetek_stroškov[Stroški])","v":{"v":238,"d":"238.00"}},{"$f":"SUMIFS(Str_feb[Znesek],Str_feb[Kategorija],Povzetek_stroškov[Stroški])","v":{"v":238,"d":"238.00"}},{"$f":"SUMIFS(Str_mar[Znesek],Str_mar[Kategorija],Povzetek_stroškov[Stroški])","v":{"v":238,"d":"238.00"}},{"$f":"SUMIFS(Str_apr[Znesek],Str_apr[Kategorija],Povzetek_stroškov[Stroški])","v":{"v":123,"d":"123.00"}},{"$f":"SUMIFS(Str_maj[Znesek],Str_maj[Kategorija],Povzetek_stroškov[Stroški])","v":{"v":111,"d":"111.00"}},{"$f":"SUMIFS(Str_jun[Znesek],Str_jun[Kategorija],Povzetek_stroškov[Stroški])","v":{"v":98,"d":"98.00"}},{"$f":"SUMIFS(Str_jul[Znesek],Str_jul[Kategorija],Povzetek_stroškov[Stroški])","v":{"v":0,"d":"0.00"}},{"$f":"SUMIFS(Str_avg[Znesek],Str_avg[Kategorija],Povzetek_stroškov[Stroški])","v":{"v":0,"d":"0.00"}},{"$f":"SUMIFS(Str_sep[Znesek],Str_sep[Kategorija],Povzetek_stroškov[Stroški])","v":{"v":0,"d":"0.00"}},{"$f":"SUMIFS(Str_okt[Znesek],Str_okt[Kategorija],Povzetek_stroškov[Stroški])","v":{"v":0,"d":"0.00"}},{"$f":"SUMIFS(Str_nov[Znesek],Str_nov[Kategorija],Povzetek_stroškov[Stroški])","v":{"v":0,"d":"0.00"}},{"$f":"SUMIFS(Str_dec[Znesek],Str_dec[Kategorija],Povzetek_stroškov[Stroški])","v":{"v":440,"d":"440.00"}},{"$f":"SUM(Povzetek_stroškov[[#This Row],[Jan]:[Dec]])","v":{"v":1486,"d":"1,486.00"}}]
["Strošek 3",{"$f":"SUMIFS(Str_jan[Znesek],Str_jan[Kategorija],Povzetek_stroškov[Stroški])","v":{"v":110,"d":"110.00"}},{"$f":"SUMIFS(Str_feb[Znesek],Str_feb[Kategorija],Povzetek_stroškov[Stroški])","v":{"v":110,"d":"110.00"}},{"$f":"SUMIFS(Str_mar[Znesek],Str_mar[Kategorija],Povzetek_stroškov[Stroški])","v":{"v":110,"d":"110.00"}},{"$f":"SUMIFS(Str_apr[Znesek],Str_apr[Kategorija],Povzetek_stroškov[Stroški])","v":{"v":125,"d":"125.00"}},{"$f":"SUMIFS(Str_maj[Znesek],Str_maj[Kategorija],Povzetek_stroškov[Stroški])","v":{"v":333,"d":"333.00"}},{"$f":"SUMIFS(Str_jun[Znesek],Str_jun[Kategorija],Povzetek_stroškov[Stroški])","v":{"v":122,"d":"122.00"}},{"$f":"SUMIFS(Str_jul[Znesek],Str_jul[Kategorija],Povzetek_stroškov[Stroški])","v":{"v":0,"d":"0.00"}},{"$f":"SUMIFS(Str_avg[Znesek],Str_avg[Kategorija],Povzetek_stroškov[Stroški])","v":{"v":0,"d":"0.00"}},{"$f":"SUMIFS(Str_sep[Znesek],Str_sep[Kategorija],Povzetek_stroškov[Stroški])","v":{"v":0,"d":"0.00"}},{"$f":"SUMIFS(Str_okt[Znesek],Str_okt[Kategorija],Povzetek_stroškov[Stroški])","v":{"v":0,"d":"0.00"}},{"$f":"SUMIFS(Str_nov[Znesek],Str_nov[Kategorija],Povzetek_stroškov[Stroški])","v":{"v":0,"d":"0.00"}},{"$f":"SUMIFS(Str_dec[Znesek],Str_dec[Kategorija],Povzetek_stroškov[Stroški])","v":{"v":122,"d":"122.00"}},{"$f":"SUM(Povzetek_stroškov[[#This Row],[Jan]:[Dec]])","v":{"v":1032,"d":"1,032.00"}}]
["Strošek 4",{"$f":"SUMIFS(Str_jan[Znesek],Str_jan[Kategorija],Povzetek_stroškov[Stroški])","v":{"v":426,"d":"426.00"}},{"$f":"SUMIFS(Str_feb[Znesek],Str_feb[Kategorija],Povzetek_stroškov[Stroški])","v":{"v":84,"d":"84.00"}},{"$f":"SUMIFS(Str_mar[Znesek],Str_mar[Kategorija],Povzetek_stroškov[Stroški])","v":{"v":84,"d":"84.00"}},{"$f":"SUMIFS(Str_apr[Znesek],Str_apr[Kategorija],Povzetek_stroškov[Stroški])","v":{"v":426,"d":"426.00"}},{"$f":"SUMIFS(Str_maj[Znesek],Str_maj[Kategorija],Povzetek_stroškov[Stroški])","v":{"v":125,"d":"125.00"}},{"$f":"SUMIFS(Str_jun[Znesek],Str_jun[Kategorija],Povzetek_stroškov[Stroški])","v":{"v":187,"d":"187.00"}},{"$f":"SUMIFS(Str_jul[Znesek],Str_jul[Kategorija],Povzetek_stroškov[Stroški])","v":{"v":0,"d":"0.00"}},{"$f":"SUMIFS(Str_avg[Znesek],Str_avg[Kategorija],Povzetek_stroškov[Stroški])","v":{"v":0,"d":"0.00"}},{"$f":"SUMIFS(Str_sep[Znesek],Str_sep[Kategorija],Povzetek_stroškov[Stroški])","v":{"v":0,"d":"0.00"}},{"$f":"SUMIFS(Str_okt[Znesek],Str_okt[Kategorija],Povzetek_stroškov[Stroški])","v":{"v":0,"d":"0.00"}},{"$f":"SUMIFS(Str_nov[Znesek],Str_nov[Kategorija],Povzetek_stroškov[Stroški])","v":{"v":0,"d":"0.00"}},{"$f":"SUMIFS(Str_dec[Znesek],Str_dec[Kategorija],Povzetek_stroškov[Stroški])","v":{"v":187,"d":"187.00"}},{"$f":"SUM(Povzetek_stroškov[[#This Row],[Jan]:[Dec]])","v":{"v":1519,"d":"1,519.00"}}]
["Strošek 5",{"$f":"SUMIFS(Str_jan[Znesek],Str_jan[Kategorija],Povzetek_stroškov[Stroški])","v":{"v":54,"d":"54.00"}},{"$f":"SUMIFS(Str_feb[Znesek],Str_feb[Kategorija],Povzetek_stroškov[Stroški])","v":{"v":54,"d":"54.00"}},{"$f":"SUMIFS(Str_mar[Znesek],Str_mar[Kategorija],Povzetek_stroškov[Stroški])","v":{"v":109,"d":"109.00"}},{"$f":"SUMIFS(Str_apr[Znesek],Str_apr[Kategorija],Povzetek_stroškov[Stroški])","v":{"v":98,"d":"98.00"}},{"$f":"SUMIFS(Str_maj[Znesek],Str_maj[Kategorija],Povzetek_stroškov[Stroški])","v":{"v":33,"d":"33.00"}},{"$f":"SUMIFS(Str_jun[Znesek],Str_jun[Kategorija],Povzetek_stroškov[Stroški])","v":{"v":441,"d":"441.00"}},{"$f":"SUMIFS(Str_jul[Znesek],Str_jul[Kategorija],Povzetek_stroškov[Stroški])","v":{"v":0,"d":"0.00"}},{"$f":"SUMIFS(Str_avg[Znesek],Str_avg[Kategorija],Povzetek_stroškov[Stroški])","v":{"v":0,"d":"0.00"}},{"$f":"SUMIFS(Str_sep[Znesek],Str_sep[Kategorija],Povzetek_stroškov[Stroški])","v":{"v":0,"d":"0.00"}},{"$f":"SUMIFS(Str_okt[Znesek],Str_okt[Kategorija],Povzetek_stroškov[Stroški])","v":{"v":0,"d":"0.00"}},{"$f":"SUMIFS(Str_nov[Znesek],Str_nov[Kategorija],Povzetek_stroškov[Stroški])","v":{"v":0,"d":"0.00"}},{"$f":"SUMIFS(Str_dec[Znesek],Str_dec[Kategorija],Povzetek_stroškov[Stroški])","v":{"v":99,"d":"99.00"}},{"$f":"SUM(Povzetek_stroškov[[#This Row],[Jan]:[Dec]])","v":{"v":888,"d":"888.00"}}]
["Vsota",{"$f":"SUBTOTAL(109,Povzetek_stroškov[Jan])","v":{"v":861,"d":"861.00"}},{"$f":"SUBTOTAL(109,Povzetek_stroškov[Feb])","v":{"v":861,"d":"861.00"}},{"$f":"SUBTOTAL(109,Povzetek_stroškov[Mar])","v":{"v":574,"d":"574.00"}},{"$f":"SUBTOTAL(109,Povzetek_stroškov[Apr])","v":{"v":817,"d":"817.00"}},{"$f":"SUBTOTAL(109,Povzetek_stroškov[Maj])","v":{"v":977,"d":"977.00"}},{"$f":"SUBTOTAL(109,Povzetek_stroškov[Jun])","v":{"v":1049,"d":"1,049.00"}},{"$f":"SUBTOTAL(109,Povzetek_stroškov[Jul])","v":{"v":0,"d":"0.00"}},{"$f":"SUBTOTAL(109,Povzetek_stroškov[Avg])","v":{"v":0,"d":"0.00"}},{"$f":"SUBTOTAL(109,Povzetek_stroškov[Sep])","v":{"v":0,"d":"0.00"}},{"$f":"SUBTOTAL(109,Povzetek_stroškov[Okt])","v":{"v":0,"d":"0.00"}},{"$f":"SUBTOTAL(109,Povzetek_stroškov[Nov])","v":{"v":0,"d":"0.00"}},{"$f":"SUBTOTAL(109,Povzetek_stroškov[Dec])","v":{"v":1049,"d":"1,049.00"}},{"$f":"SUBTOTAL(109,Povzetek_stroškov[Vsota])","v":{"v":6188,"d":"6,188.00"}}]

{"sheet":"jan","index":2,"n_rows":9,"n_cols":5,"rows_kept":9,"merged":[[0,0,0,2]]}
["STROŠKI V JANUARJU",null,null,"Povzetek","Namigi"]
["Datum","Št. naročilnice","Znesek","Kategorija","Opis"]
[{"$f":"DATE(YEAR(TODAY()),1,4)","v":"2016-01-04"},"A-12345",{"v":33,"d":"33.00"},"Strošek 1","Zaloge"]
[{"$f":"DATE(YEAR(TODAY()),1,5)","v":"2016-01-05"},"A-12346",{"v":238,"d":"238.00"},"Strošek 2"]
[null,null,{"v":342,"d":"342.00"},"Strošek 4"]
[null,null,{"v":110,"d":"110.00"},"Strošek 3"]
[null,null,{"v":84,"d":"84.00"},"Strošek 4"]
[null,null,{"v":54,"d":"54.00"},"Strošek 5"]
["Vsota",null,{"$f":"SUBTOTAL(109,Str_jan[Znesek])","v":{"v":861,"d":"861.00"}}]

{"sheet":"feb","index":3,"n_rows":9,"n_cols":5,"rows_kept":9,"merged":[[0,0,0,2]]}
["STROŠKI V FEBRUARJU",null,null,"Povzetek","Namigi"]
["Datum","Št. naročilnice","Znesek","Kategorija","Opis"]
[{"$f":"DATE(YEAR(TODAY()),2,3)","v":"2016-02-03"},"A-12345",{"v":33,"d":"33.00"},"Strošek 1","Zaloge"]
[{"$f":"DATE(YEAR(TODAY()),2,4)","v":"2016-02-04"},"A-12346",{"v":238,"d":"238.00"},"Strošek 2"]
[null,null,{"v":342,"d":"342.00"},"Strošek 1"]
[null,null,{"v":110,"d":"110.00"},"Strošek 3"]
[null,null,{"v":84,"d":"84.00"},"Strošek 4"]
[null,null,{"v":54,"d":"54.00"},"Strošek 5"]
["Vsota",null,{"$f":"SUBTOTAL(109,Str_feb[Znesek])","v":{"v":861,"d":"861.00"}}]

{"sheet":"mar","index":4,"n_rows":9,"n_cols":5,"rows_kept":9,"merged":[[0,0,0,2]]}
["STROŠKI V MARCU",null,null,"Povzetek","Namigi"]
["Datum","Št. naročilnice","Znesek","Kategorija","Opis"]
[{"$f":"DATE(YEAR(TODAY()),3,5)","v":"2016-03-05"},"A-12345",{"v":33,"d":"33.00"},"Strošek 1","Zaloge"]
[{"$f":"DATE(YEAR(TODAY()),3,6)","v":"2016-03-06"},"A-12346",{"v":238,"d":"238.00"},"Strošek 2"]
[null,null,{"v":55,"d":"55.00"},"Strošek 5"]
[null,null,{"v":110,"d":"110.00"},"Strošek 3"]
[null,null,{"v":84,"d":"84.00"},"Strošek 4"]
[null,null,{"v":54,"d":"54.00"},"Strošek 5"]
["Vsota",null,{"$f":"SUBTOTAL(109,Str_mar[Znesek])","v":{"v":574,"d":"574.00"}}]

{"sheet":"apr","index":5,"n_rows":9,"n_cols":5,"rows_kept":9,"merged":[[0,0,0,2]]}
["STROŠKI V APRILU",null,null,"Povzetek","Namigi"]
["Datum","Št. naročilnice","Znesek","Kategorija","Opis"]
[{"$f":"DATE(YEAR(TODAY()),4,4)","v":"2016-04-04"},"A-12345",{"v":45,"d":"45.00"},"Strošek 1","Zaloge"]
[{"$f":"DATE(YEAR(TODAY()),4,8)","v":"2016-04-08"},"A-12346",{"v":123,"d":"123.00"},"Strošek 2"]
[null,null,{"v":342,"d":"342.00"},"Strošek 4"]
[null,null,{"v":125,"d":"125.00"},"Strošek 3"]
[null,null,{"v":84,"d":"84.00"},"Strošek 4"]
[null,null,{"v":98,"d":"98.00"},"Strošek 5"]
["Vsota",null,{"$f":"SUBTOTAL(109,Str_apr[Znesek])","v":{"v":817,"d":"817.00"}}]

{"sheet":"maj","index":6,"n_rows":9,"n_cols":5,"rows_kept":9,"merged":[[0,0,0,2]]}
["STROŠKI V MAJU",null,null,"Povzetek","Namigi"]
["Datum","Št. naročilnice","Znesek","Kategorija","Opis"]
[{"$f":"DATE(YEAR(TODAY()),5,3)","v":"2016-05-03"},"A-12345",{"v":33,"d":"33.00"},"Strošek 1","Zaloge"]
[{"$f":"DATE(YEAR(TODAY()),5,8)","v":"2016-05-08"},"A-12346",{"v":111,"d":"111.00"},"Strošek 2"]
[null,null,{"v":342,"d":"342.00"},"Strošek 1"]
[null,null,{"v":333,"d":"333.00"},"Strošek 3"]
[null,null,{"v":125,"d":"125.00"},"Strošek 4"]
[null,null,{"v":33,"d":"33.00"},"Strošek 5"]
["Vsota",null,{"$f":"SUBTOTAL(109,Str_maj[Znesek])","v":{"v":977,"d":"977.00"}}]

{"sheet":"jun","index":7,"n_rows":9,"n_cols":5,"rows_kept":9,"merged":[[0,0,0,2]]}
["STROŠKI V JUNIJU",null,null,"Povzetek","Namigi"]
["Datum","Št. naročilnice","Znesek","Kategorija","Opis"]
[{"$f":"DATE(YEAR(TODAY()),6,7)","v":"2016-06-07"},"A-12345",{"v":201,"d":"201.00"},"Strošek 1","Zaloge"]
[{"$f":"DATE(YEAR(TODAY()),6,8)","v":"2016-06-08"},"A-12346",{"v":98,"d":"98.00"},"Strošek 2"]
[null,null,{"v":342,"d":"342.00"},"Strošek 5"]
[null,null,{"v":122,"d":"122.00"},"Strošek 3"]
[null,null,{"v":187,"d":"187.00"},"Strošek 4"]
[null,null,{"v":99,"d":"99.00"},"Strošek 5"]
["Vsota",null,{"$f":"SUBTOTAL(109,Str_jun[Znesek])","v":{"v":1049,"d":"1,049.00"}}]

{"sheet":"jul","index":8,"n_rows":9,"n_cols":5,"rows_kept":9,"merged":[[0,0,0,2]]}
["STROŠKI V JULIJU",null,null,"Povzetek","Namigi"]
["Datum","Št. naročilnice","Znesek","Kategorija","Opis"]
[{"$f":"DATE(YEAR(TODAY()),7,9)","v":"2016-07-09"},"A-12345",null,"Strošek 1","Zaloge"]
[{"$f":"DATE(YEAR(TODAY()),7,14)","v":"2016-07-14"},"A-12346",null,"Strošek 2"]
[{"$nulls":3},"Strošek 2"]
[{"$nulls":3},"Strošek 3"]
[{"$nulls":3},"Strošek 4"]
[{"$nulls":3},"Strošek 5"]
["Vsota",null,{"$f":"SUBTOTAL(109,Str_jul[Znesek])","v":{"v":0,"d":"0.00"}}]

{"sheet":"avg","index":9,"n_rows":9,"n_cols":5,"rows_kept":9,"merged":[[0,0,0,2]]}
["STROŠKI V AVGUSTU",null,null,"Povzetek","Namigi"]
["Datum","Št. naročilnice","Znesek","Kategorija","Opis"]
[{"$f":"DATE(YEAR(TODAY()),8,8)","v":"2016-08-08"},"A-12345",null,"Strošek 1","Zaloge"]
[{"$f":"DATE(YEAR(TODAY()),8,9)","v":"2016-08-09"},"A-12346",null,"Strošek 2"]
[{"$nulls":3},"Strošek 2"]
[{"$nulls":3},"Strošek 3"]
[{"$nulls":3},"Strošek 4"]
[{"$nulls":3},"Strošek 5"]
["Vsota",null,{"$f":"SUBTOTAL(109,Str_avg[Znesek])","v":{"v":0,"d":"0.00"}}]

{"sheet":"sep","index":10,"n_rows":9,"n_cols":5,"rows_kept":9,"merged":[[0,0,0,2]]}
["STROŠKI V SEPTEMBRU",null,null,"Povzetek","Namigi"]
["Datum","Št. naročilnice","Znesek","Kategorija","Opis"]
[{"$f":"DATE(YEAR(TODAY()),9,9)","v":"2016-09-09"},"A-12345",null,"Strošek 1","Zaloge"]
[{"$f":"DATE(YEAR(TODAY()),9,15)","v":"2016-09-15"},"A-12346",null,"Strošek 2"]
[{"$nulls":3},"Strošek 2"]
[{"$nulls":3},"Strošek 3"]
[{"$nulls":3},"Strošek 4"]
[{"$nulls":3},"Strošek 5"]
["Vsota",null,{"$f":"SUBTOTAL(109,Str_sep[Znesek])","v":{"v":0,"d":"0.00"}}]

{"sheet":"okt","index":11,"n_rows":9,"n_cols":5,"rows_kept":9,"merged":[[0,0,0,2]]}
["STROŠKI V OKTOBRU",null,null,"Povzetek","Namigi"]
["Datum","Št. naročilnice","Znesek","Kategorija","Opis"]
[{"$f":"DATE(YEAR(TODAY()),10,10)","v":"2016-10-10"},"A-12345",null,"Strošek 1","Zaloge"]
[{"$f":"DATE(YEAR(TODAY()),10,21)","v":"2016-10-21"},"A-12346",null,"Strošek 2"]
[{"$nulls":3},"Strošek 2"]
[{"$nulls":3},"Strošek 3"]
[{"$nulls":3},"Strošek 4"]
[{"$nulls":3},"Strošek 5"]
["Vsota",null,{"$f":"SUBTOTAL(109,Str_okt[Znesek])","v":{"v":0,"d":"0.00"}}]

{"sheet":"nov","index":12,"n_rows":9,"n_cols":5,"rows_kept":9,"merged":[[0,0,0,2]]}
["STROŠKI V NOVEMBRU",null,null,"Povzetek","Namigi"]
["Datum","Št. naročilnice","Znesek","Kategorija","Opis"]
[{"$f":"DATE(YEAR(TODAY()),11,14)","v":"2016-11-14"},"A-12345",null,"Strošek 1","Zaloge"]
[{"$f":"DATE(YEAR(TODAY()),11,21)","v":"2016-11-21"},"A-12346",null,"Strošek 2"]
[{"$nulls":3},"Strošek 2"]
[{"$nulls":3},"Strošek 3"]
[{"$nulls":3},"Strošek 4"]
[{"$nulls":3},"Strošek 5"]
["Vsota",null,{"$f":"SUBTOTAL(109,Str_nov[Znesek])","v":{"v":0,"d":"0.00"}}]

{"sheet":"dec","index":13,"n_rows":9,"n_cols":5,"rows_kept":9,"merged":[[0,0,0,2]]}
["STROŠKI V DECEMBRU",null,null,"Povzetek","Namigi"]
["Datum","Št. naročilnice","Znesek","Kategorija","Opis"]
[{"$f":"DATE(YEAR(TODAY()),12,2)","v":"2016-12-02"},"A-12345",{"v":201,"d":"201.00"},"Strošek 1","Zaloge"]
[{"$f":"DATE(YEAR(TODAY()),12,24)","v":"2016-12-24"},"A-12346",{"v":98,"d":"98.00"},"Strošek 2"]
[null,null,{"v":342,"d":"342.00"},"Strošek 2"]
[null,null,{"v":122,"d":"122.00"},"Strošek 3"]
[null,null,{"v":187,"d":"187.00"},"Strošek 4"]
[null,null,{"v":99,"d":"99.00"},"Strošek 5"]
["Vsota",null,{"$f":"SUBTOTAL(109,Str_dec[Znesek])","v":{"v":1049,"d":"1,049.00"}}]